{"text_format":"3","workbook":"xlsx","n_sheets":13,"sheets":["CAP JUR","CAP TEC - Exp General","CAP TEC - Exp Especifica","CAP TEC - Personal mínimo","CAP TEC - Trayectoria","CAP TEC - Compra pública ","CAP FIN Y ORG","Ver y Eva - Propuestas","Cert Fábrica","Resp NENA EENA APCO","Cert Experiencia","Factor Económico","Calidad"],"read":"whole","date_system":"1900"}

{"sheet":"CAP JUR","index":0,"n_rows":28,"n_cols":19,"rows_kept":28,"merged":[[0,0,1,1],[0,2,0,18],[1,2,1,5],[1,6,1,9],[1,10,1,14],[1,15,1,18],[2,0,3,1],[2,2,2,3],[2,4,4,4],[2,5,4,5],[2,6,2,7],[2,8,4,8],[2,9,4,9],[2,10,2,12],[2,13,4,13],[2,14,4,14],[2,15,2,16],[2,17,4,17],[2,18,4,18],[3,3,4,3],[3,7,4,7],[3,12,4,12],[3,16,4,16],[5,10,5,11],[7,0,9,0],[9,10,9,11],[13,10,13,11],[24,0,26,0],[24,10,24,11],[25,10,25,11],[26,10,26,11],[27,0,27,1],[27,2,27,5],[27,6,27,9],[27,10,27,14],[27,15,27,18]]}
["FECHA Y HORA DE CIERRE DEL PROCESO: 05 DE DICIEMBRE DE 2025 A LAS 10:00 HORAS",null,"SPO 2025-7: CONTRATO MARCO PARA LA PRESTACIÓN DE SERVICIOS ESPECIALIZADOS ORIENTADOS A LA IMPLEMENTACIÓN Y OPERACIÓN DEL ECOSISTEMA TECNOLÓGICO DEL SISTEMA INTELIGENTE DE MOVILIDAD DE MEDELLÍNCONTRATO MARCO PARA LA PRESTACIÓN DE SERVICIOS ESPECIALIZADOS ORIENTADOS A LA IMPLEMENTACIÓN Y OPERACIÓN DEL ECOSISTEMA TECNOLÓGICO DEL SISTEMA INTELIGENTE DE MOVILIDAD DE MEDELLÍN"]
[null,null,"OFERENTE 1",{"$nulls":3},"OFERENTE 2",{"$nulls":3},"OFERENTE 3",{"$nulls":4},"OFERENTE 4"]
["REQUISITOS DE PARTICIPACIÓN Y HABILITACIÓN\n3.1.1. CAPACIDAD JURÍDICA",null,"COMPAÑÍA INTERNACIONAL DE INTEGRACION CI2 SA",null,"OBSERVACIÓN","REQUERIDO","TECNOLOGÍAS DE LA INFORMACIÓN Y PAGO INTEGRADO S.A.S. TIPI",null,"OBSERVACIÓN","REQUERIDO","UNIÓN TEMPORAL SIM MEDELLIN VF (FRISSON TECNOLOGIES S.A.S 90% - VERYTEL S.A. 10%)",null,null,"OBSERVACIÓN","REQUERIDO","INTEIA S.A.S.",null,"OBSERVACIÓN","REQUERIDO"]
[null,null,"830056149-0","FOLIO FÍSICO\nN°",null,null,"900446461-1","FOLIO FÍSICO\nN°",null,null,"900784911-3\nFRISSON TECNOLOGIES S.A.S","830050633-7\nVERYTEL S.A. ","FOLIO FÍSICO\nN° \n",null,null,"900457885-8","FOLIO FÍSICO\nN° \n"]
["UBICACIÓN PLIEGO","DESCRIPCIÓN REQUISITO","APORTADO",{"$nulls":3},"APORTADO",{"$nulls":3},"APORTADO","APORTADO",{"$nulls":3},"APORTADO"]
["3.1.1.1.","Carta de presentación","SI","4-5",null,"NO","SI","01",null,"NO","SI",null,"7-9",null,"NO","SI","3-4",null,"NO"]
["3.1.1.2","Copia de la cédula","SI","7",null,"NO","SI","02",null,"NO","SI","SI","13-15",null,"NO","SI","5",null,"NO"]
["3.1.1.3","Certificado de existencia y representación legal (Con fecha no anterior a 1 mes a la fecha del cierre)","SI","9-20","24/11/205","NO","SI","03-10","21/11/2025","NO","SI","SI","18-38",null,"NO","SI","6-43","4/12/2025","NO"]
[null,"Certificado de autorización para contratar, cuando aplique","SI","22-23","2025-12-02","-","SI","11 12","2025-11-26","NO","N/A","-","-","-","-","N/A","-","-","NO"]
[null,"ANEXO N° 22-CONFORMACIÓN DE PROPONENTE PRURAL","N/A","-","-","-","N/A","-","-","NO","SI",null,"40-42",null,"NO","N/A","-","-","NO"]
["3.1.1.4","Registro Único Tributario-RUT","SI","25-28",null,"NO","SI","13-17",null,"NO","SI","SI","45-55",null,"NO","SI","44-49",null,"NO"]
["3.1.1.5","Acreditación Certificación de Pagos de sistema de Seguridad Social Integral y Parafiscales","SI","30-35","REV. FISCAL JULIANA BUSTOS\nCC 1088021381\nTP 269994\nJCC 6/10/2025","NO","SI","18-22","REV. FISCAL GLORIA PALACIO RIOS\nCC 1020436254\nTP187422\nJCC 7/10/2025","NO","SI",null,"58-67",null,"NO","SI","50-51","REV. FISCAL DELOITTE&TOUCHE SAS \nNIT 860005813-4\nTP 213621-T","NO"]
["3.1.1.6","Registro Único de Proponentes – RUP","SI","39-120","24/11/2025\nNO REPORTA SANCIONES VIGENTES\nAcreditación Códigos UNSPSC: Cumple","NO","SI","23-56","6/11/2025\nNO REPORTA SANCIONES VIGENTES\nAcreditación Códigos UNSPSC: Cumple","NO","SI","SI","68-619","FRISSON NO REPORTA SANCIONES VIGENTES\n\nVERYTEL NO REPORTA SANCIONES VIGENTES\n\nAcreditación Códigos UNSPSC: Cumple","NO","SI","52-115","NO REPORTA SANCIONES VIGENTES\nAcreditación Códigos UNSPSC: Cumple","NO"]
["3.1.1.9.","Garantía para cubrir los riesgos derivados del incumplimiento del ofrecimiento: Se deberá anexar garantía de seriedad de la propuesta, a favor de la “EMPRESA PARA LA SEGURIDAD Y SOLUCIONES URBANAS – ESU”, con NIT. 890.984.761-8, constituida ante una compañía de seguros o entidad bancaria legalmente establecida en Colombia, o patrimonio autónomo, y que contenga los siguientes aspectos:\n● Valor asegurado: Equivalente al diez por ciento (10%) del valor presentado en la propuesta economica \n● Vigencia: Tres (3) meses, contados a partir de la fecha de cierre del proceso contractual.\n● Tomador y/o afianzado: La garantía deberá tomarse con el nombre o razón social que figura en el Certificado de Existencia y Representación Legal expedido por la Cámara de Comercio.\n● Asegurado y beneficiario: Empresa para la Seguridad y Soluciones Urbanas – ESU.\nObjeto y numero del proceso.\n● Firmas del tomador y de la aseguradora que la expide.","SI","130-138","SEGUROS LA EQUIDAD N° AB009138\n$3,015,000,000","NO","SI","58-60","SURA N° 4405570\n$3,000,000,000","NO","SI",null,"622-625","SEGUROS DEL ESTADO N° 11-44-101271548\n$ 3,000,000,000","NO","SI","116-125","SEGUROS DEL ESTADO N° 14-44-101250832\n$2,436,788,445\n\nNO CUMPLE CON EL 10% COMO  VALOR ASEGURADO SOBRE EL VALOR TOTAL DE LA OFERTA","SI"]
["3.1.1.10. ","Certificado de Procuraduría General de la Nación (Con fecha no anterior a 1 mes de la fecha del cierre)","SI","140-141","2025-12-02","NO","SI","61-62","2025-11-25","NO","SI","SII","627-633","2025-12-02","NO","SI","129-130","2025-12-04","NO"]
["3.1.1.11.","Certificado de Contraloría General de la Nación (Con fecha no anterior a 1 mes de la fecha del cierre)","SI","143-144","2025-12-02","NO","SI","63-64","2025-11-25","NO","SI","SI","635-641","2025-12-02","NO","SI","127-128","2025-12-04","NO"]
["3.1.1.12","Certificado de antecedentes judiciales (Con fecha no anterior a 1 mes de la fecha del cierre)","SI","146","2025-12-02","NO","SI",65,"2025-11-25","NO","SI","SI","643-647","2025-12-02","NO","SI","131","2025-12-04","NO"]
["3.1.1.13","Certificado del Registro Nacional de Medidas Correctivas-RNMC, donde conste que a la persona o representante legal no le han sido impuestas multas por infracción del Código de Policía o, si presenta multas (Con fecha no anterior a 1 mes de la fecha del cierre)","SI","148","2/12/2025\nSOLO APORTAN EL DE PERSONA JURIDICA, NO OBSTANTE, LA ENTIDAD VERIFICO AL RL","NO","SI","66-67","2025-11-25","NO","SI","SI","649-653","2025-12-02","NO","SI","133","2025-12-04","NO"]
["3.1.1.21.","Certificado Registro de Deudores Alimentarios Morosos- REDAM (Con fecha no anterior a 30 días calendario 19/08/2025)","SI","186",null,"NO","SI",92,"2025-11-25","NO","SI","SI","752-756","2025-12-02","NO","SI","135","2025-12-04","NO"]
["3.1.1.14","Certificado de la Consulta de Inhabilidades de la Ley 1918 de 2018 y Decreto 753 de 2019 del representante legal de la empresa (Con fecha no anterior a 1 mes de la fecha del cierre)","NO","-","NO APORTADO PERO FUE VERIFICADO POR LA ENTIDAD","NO","SI",68,"2025-11-25","NO","SI","SI","655-659","2025-12-02","NO","NO","-","VERIFICADO POR LA ENTIDAD EL 5/12/2025","NO"]
["3.1.1.15.","Documentación para acreditar la implementación del sistema de gestión de seguridad en el trabajo (SG-SST): encontrándose una calificación Aceptable (85%)","SI","153-184",null,"NO","SI","69-85",null,"NO","SI","SI","660-750",null,"NO","SI","136-154","No aportó diligenciado el ANEXO N° 5 - CERTIFICACIÓN NÚMERO DE \nEMPLEADOS Y TIPO(S) DE RIESGOS DE LA ARL.","SI"]
["3.1.1.22.","Formato de autorización de tratamiento de datos personales conforme a la ley 1581 de 2012 y el decreto 1074 de 2015  ","SI","188-189",null,"NO","SI",93,null,"NO","SI","S","758-763",null,"NO","SI","155-156",null,"NO"]
["3.1.1.23.","Certificado de Reciprocidad: Si el proponente es extranjero, podrá aportar el certificado de reciprocidad conforme a lo establecido en el artículo 20 de la Ley 80 de 1993","N/A","-","-","-","N/A","-","-","NO","N/A","-","-","-","-","N/A","-","-","NO"]
["3.1.1.24","Diligenciar ANEXO N° 6 CERTIFICADO DE INHABILIDADES E INCOMPATIBILIDADES","SI","196",null,"NO","SI",94,null,"NO","SI","SI","766-768",null,"NO","SI","179",null,"NO"]
["3.1.2.6.","ANEXO N° 11 - COMPRA PÚBLICA INNOVADORA","SI","262",null,"NO","SI",191,null,"NO","SI",null,"1012",null,"NO","SI","207",null,"NO"]
[null,"ANEXO N°12 - COMPRA PÚBLICA SOSTENIBLE","SI","264",null,"NO","SI",192,null,"NO","SI",null,"1013",null,"NO","SI","208",null,"NO"]
[null,"ANEXO N°13- COMPRA PÚBLICA SOCIALMENTE RESPONSABLE","SI","266",null,"NO","SI",132,null,"NO","SI",null,"1014",null,"NO","SI","209",null,"NO"]
["RESULTADO ",null,"HABILITADO",{"$nulls":3},"HABILITADO",{"$nulls":3},"HABILITADO",{"$nulls":4},"NO HABILITADO"]

{"sheet":"CAP TEC - Exp General","index":1,"n_rows":7,"n_cols":57,"rows_kept":7,"merged":[[0,1,0,5],[0,6,0,10],[0,11,0,15],[0,16,0,20],[6,1,6,5],[6,6,6,10],[6,11,6,15],[6,16,6,20]]}
["REQUISITOS DE PARTICIPACIÓN Y HABILITACIÓN\n3.1.2.CAPACIDAD TECNICA\n3.1.2.1. Experiencia General Habilitante","COMPAÑÍA INTERNACIONAL DE INTEGRACION CI2 SA",{"$nulls":4},"TECNOLOGÍAS DE LA INFORMACIÓN Y PAGO INTEGRADO S.A.S. TIPI",{"$nulls":4},"UNIÓN TEMPORAL SIM MEDELLIN VF (FRISSON TECNOLOGIES S.A.S 90% - VERYTEL S.A. 10%)",{"$nulls":4},"INTEIA S.A.S."]
["DESCRIPCIÓN REQUISITO","Contrato 1","Contrato 2","Contrato 3","Folio","Observacion ","Contrato 1","Contrato 2","Contrato 3","Folio","Observacion ","Contrato 1","Contrato 2","Contrato 3","Folio","Observacion ","Contrato 1","Contrato 2","Contrato 3","Folio","Observacion ",{"$nulls":15},"ALARMAR","ATLAS SEGURIDAD","CABLETRONICS S.A.S","CI2","CORTE INGLES","ENERGIZANDO INGENIERIA Y CONSTRUCCIÓN","G4S - SECURE SOLUTIONS COLOMBIA S.A.","INDRA DE COLOMBIA S.A.S","INSITEL","ISEC","MELTEC COMUNICACIONES S.A","NEC DE COLOMBIA ","PROSEGUR","SITECSYS","SONDA DE COLOMBIA ","TIC COLOMBIA S.A.S","CURACAO DE COLOMBIA ","SECURITY VIDEO EQUIPMENT","SEGURITECH","ITELCA","CIS"]
["Los oferentes deberán acreditar experiencia general en mínimo uno (1) y máximo tres (3) certificados de contratos en papel membrete ejecutados, terminados o en ejecución","Cumple","Cumple","No cumple","-","Contrato 3 - En ejecución: No cumple con el porcentaje de ejecución fisica y no tiene la declaración expresa de que el contratista no se encuentra inmerso en procesos sancionatorios, de imposición de multas, medidas de apremio, o cualquier otra situación que evidencie incumplimiento, atraso injustificado o afectación a la correcta ejecución del contrato.","Cumple","Cumple","N/A","-","-","Cumple","Cumple","Cumple","-","-","No cumple","N/A","N/A","-","Contrato 1 - En ejecución: No cumple con el porcentaje de ejecución fisica y no tiene la declaración expresa de que el contratista no se encuentra inmerso en procesos sancionatorios, de imposición de multas, medidas de apremio, o cualquier otra situación que evidencie incumplimiento, atraso injustificado o afectación a la correcta ejecución del contrato."]
["Por un valor que sumado sea igual o superior a CINCO MIL (5.000) SMLMV",{"v":8332.7,"d":"8333"},{"v":765.92,"d":"766"},{"v":4946.99,"d":"4947"},"Contrato 1: 101\nContrato 2: 112\nCotrato 3: 214","-",{"v":3013.01,"d":"3013"},{"v":2756.08,"d":"2756"},"N/A","Contrato 1: 44\nContrato 2:49","-",{"$f":"7553.1+2164.04","v":{"v":9717.14,"d":"9717"}},{"$f":"5255.9991\n+159.2727","v":{"v":5415.2718,"d":"5415"}},{"$f":"3108.8211+94.2","v":{"v":3203.0211,"d":"3203"}},"Contrato 1: 230,552\nContrato 2: 152, 481\nContrato 3: 173, 530","-","No cumple","N/A","N/A",182,"Contrato 1 - El certificado aportado no contiene valor del contrato"]
["Cuyo objeto y/o alcance y/o actividades estén relacionados con: Suministro, implementación, integracion, operación, soporte y/o mantenimiento de soluciones tecnológicas para sistemas inteligentes","Cumple","Cumple","Cumple","Contrato 1: 196\nContrato 2: 198\nContrato 3: 214","-","Cumple","Cumple","N/A","Contrato 1: 100\nContrato 2: 111","-","Cumple","Cumple","Cumple","Contrato 1: 773\nContrato 2: 775\nContrato 3:777","-","Cumple","N/A","N/A",182]
["En ciudades con una población igual o superior a dos millones (2.000.000) de habitantes. Nota: La población de las ciudades serán tomadas de acuerdo con las cifras oficiales de población disponibles al momento de la ejecución del contrato (censos, proyecciones o estadísticas de la autoridad competente.","No cumple","Cumple","Cumple","Contrato 1: 196\nContrato 2: 198\nContrato 3: 214","Contrato 1: No se evidencia la ciudad","Cumple","Cumple","N/A","Contrato 1: 100\nContrato 2: 111","-","Cumple","Cumple","Cumple","Contrato 1: 773\nContrato 2: 775\nContrato 3:777","-","Cumple","N/A","N/A",182]
["RESULTADO","NO CUMPLE",{"$nulls":4},"CUMPLE",{"$nulls":4},"CUMPLE",{"$nulls":4},"NO CUMPLE"]

{"sheet":"CAP TEC - Exp Especifica","index":2,"n_rows":14,"n_cols":14,"rows_kept":14,"merged":[[0,0,0,1],[0,2,0,4],[0,5,0,7],[0,8,0,10],[0,11,0,13],[2,0,5,0],[6,0,8,0],[9,0,12,0],[13,0,13,1],[13,2,13,4],[13,5,13,7],[13,8,13,10],[13,11,13,13]]}
["REQUISITOS DE PARTICIPACIÓN Y HABILITACIÓN\n3.1.2.CAPACIDAD TECNICA\n3.1.2.2. Experiencia Especifica Habilitante",null,"COMPAÑÍA INTERNACIONAL DE INTEGRACION CI2 SA",null,null,"TECNOLOGÍAS DE LA INFORMACIÓN Y PAGO INTEGRADO S.A.S. TIPI",null,null,"UNIÓN TEMPORAL SIM MEDELLIN VF (FRISSON TECNOLOGIES S.A.S 90% - VERYTEL S.A. 10%)",null,null,"INTEIA S.A.S."]
["ÍTEM","DESCRIPCIÓN REQUISITO","Contrato","Folio","Observación","Contrato","Folio","Observación","Contrato","Folio","Observación","Contrato","Folio","Observación"]
["a","El proponente deberá acreditar experiencia mediante la presentación de una (1) certificación de contrato ejecutado, terminado o en ejecución,","Cumple",196,"-","Cumple",125,"-","Cumple","782-798","-","Cumple",182,"-"]
[null,"dentro de los últimos quince (15) años, que contenga lo siguiente:","Cumple",196,"-","Cumple",125,"-","Cumple","782-798","-","Cumple",182,"-"]
[null,"Alcance del contrato: El contrato deberá haber tenido como objeto, alcance y/o actividades la operación y monitoreo en tiempo real de una plataforma tecnológica, entendida esta como un sistema integral de información, supervisión, despacho, control, videovigilancia, telemetría u otras tecnologías orientadas al soporte de la gestión urbana.","Cumple",196,"-","Cumple",125,"-","Cumple","782-798","-","Cumple",182,"-"]
[null,"Finalidad o misionalidad institucional: La plataforma tecnológica mencionada deberá haberse utilizado para garantizar, soportar o ejecutar la misionalidad institucional de un Centro de Control de Ciudad, siempre que su operación se haya orientado a funciones críticas como: Seguridad ciudadana y convivencia, Movilidad e ITS, Gestión de emergencias y despacho especializado, Supervisión de recursos críticos para la atención y despacho misional del centro de control. Tales como personal, equipos y/o vehículos","Cumple",197,"-","Cumple",125,"-","Cumple","782-798","-","Cumple",182,"-"]
["b","El proponente deberá acreditar experiencia mediante la presentación de una (1) certificación de contrato ejecutado, terminado o en ejecución,","Cumple","198-213","-","Cumple",136,"-","Cumple","800-830","-","Cumple",182,"-"]
[null,"dentro de los últimos quince (15) años, que contenga lo siguiente:","Cumple","198-213","-","Cumple",136,"-","Cumple","800-830","-","Cumple",182,"-"]
[null,"Alcance del contrato: el contrato tuvo como objeto, alcance y/o actividades, de manera expresa y verificable, la prestación de servicios de soporte especializado, mantenimiento preventivo y correctivo, todos ellos aplicados a una plataforma tecnológica de ciudad, gestionada desde un Centro de Control, siempre que su operación se oriente a actividades como: Gestión integral de seguridad ciudadana, Movilidad y tránsito (ITS, control semafórico, monitoreo de tráfico), Gestión, seguimiento y control de recursos humanos, equipos y/o vehículos en campo, Gestión y despacho de emergencias, Supervisión de servicios públicos o infraestructura urbana crítica.","Cumple","198-213","-","Cumple",136,"-","Cumple","800-830","-","Cumple",182,"-"]
["c","El proponente deberá acreditar experiencia mediante la presentación de una (1) certificación de contrato ejecutado, terminado o en ejecución","Cumple","231-233","-","Cumple","155-156","-","Cumple","832-911","-","Cumple",182,"-"]
[null,"los últimos quince (15) años, que contenga lo siguiente:","Cumple","231-233","-","Cumple","155-156","-","Cumple","832-911","-","Cumple",182,"-"]
[null,"Alcance del contrato: El contrato deberá haber tenido como objeto, alcance y/o actividades que acrediten experiencia en suministro e implementación de una solución tecnológica orientada al fortalecimiento y apoyo de las labores\noperativas y de control desarrolladas por los organismos o agencias que estén integrados a un centro de emergencias y/o centros de control, en el marco de sus funciones legales y operativas.","Cumple","231-233","-","Cumple","155-156","-","Cumple","832-911","-","Cumple",182,"-"]
[null,"Para efectos de verificación, se entenderá que cumplen este requisito aquellos contratos que incluyan uno o varios de los siguientes elementos, siempre que hagan parte integral de la solución tecnológica implementada: Sistemas de gestión de tránsito (ITS) o plataformas de control de tráfico, Sistemas para la operación de seguridad y convivencia, Soluciones tecnológicas para supervisión de la movilidad en tiempo real, Herramientas de soporte a la operación vial, despacho y control operativo, Integración de dispositivos electrónicos, sensores, cámaras o analítica aplicada a tránsito y movilidad, Plataformas de monitoreo de flujos vehiculares o gestión del transporte público, Soluciones para fortalecimiento de la capacidad operativa de agentes de tránsito, Sistemas tecnológicos que respalden procesos sancionatorios, detección de infracciones o control normativo vehicular, siempre que sean parte del ecosistema tecnológico de movilidad de la ciudad.","Cumple","231-233","-","Cumple","155-156","-","Cumple","832-911","-","Cumple",182,"-"]
["RESULTADO",null,"CUMPLE",null,null,"CUMPLE",null,null,"CUMPLE",null,null,"CUMPLE"]

{"sheet":"CAP TEC - Personal mínimo","index":3,"n_rows":9,"n_cols":9,"rows_kept":9,"merged":[[0,1,0,2],[0,3,0,4],[0,5,0,6],[0,7,0,8],[1,1,2,1],[1,2,2,2],[1,3,2,3],[1,4,2,4],[1,5,2,5],[1,6,2,6],[1,7,2,7],[1,8,2,8],[8,1,8,2],[8,3,8,4],[8,5,8,6],[8,7,8,8]]}
["REQUISITOS DE PARTICIPACIÓN Y HABILITACIÓN\n3.1.2.CAPACIDAD TECNICA\n3.1.2.4. Personal mínimo requerido","COMPAÑÍA INTERNACIONAL DE INTEGRACION CI2 SA",null,"TECNOLOGÍAS DE LA INFORMACIÓN Y PAGO INTEGRADO S.A.S. TIPI",null,"UNIÓN TEMPORAL SIM MEDELLIN VF (FRISSON TECNOLOGIES S.A.S 90% - VERYTEL S.A. 10%)",null,"INTEIA S.A.S."]
["DESCRIPCIÓN REQUISITO","Aportado","Folio","Aportado","Folio","Aportado","Folio","Aportado","Folio"]
["Director General:"]
["Ingeniero Civil y/o Ingeniero Electrónico y/o Ingeniero Electricista y/o Ingeniero de Sistemas y/o carreras afines. Deberá contar con especialización y/o maestría en: vías y transporte y/o Gerencia de proyectos.","CUMPLE",243,"CUMPLE",157,"CUMPLE","915-928","CUMPLE","195 - 199"]
["Experiencia General: Acreditar experiencia general no menor de ocho (8) años, contada entre la fecha de expedición de la matrícula profesional y la fecha de presentación de ofertas del presente proceso. Para efectos de acreditación de la experiencia general se deberá aportar copia de la tarjeta profesional y del certificado de vigencia de la matricula profesional.","CUMPLE"," 241 - 242","CUMPLE","168-182","CUMPLE","915-928","CUMPLE","195 - 200"]
["Experiencia Específica: Acreditar experiencia específica no menor a  seis (6) años como Director de Proyectos y/o Gerente de Proyectos y/o Coordinador de proyectos de tránsito, o ejecución de cargos directivos en movilidad y transporte o proyectos de ITS destinado para Movilidad.","CUMPLE",245,"CUMPLE","179-186","CUMPLE","927-980","NO CUMPLE","NO APORTA "]
["Consentimiento del personal: Deberá aportar una carta de intención suscrita por la persona que acredita el requisito, donde certifican que tienen interés en realizar las actividades propias del contrato y conocen las implicaciones y actividades a desarrollar.","CUMPLE",236,"CUMPLE",189,"CUMPLE","981-982","CUMPLE",192]
["El proponente deberá diligenciar el ANEXO N° 9 - CUMPLIMIENTO PERSONAL.","CUMPLE",235,"CUMPLE",157,"CUMPLE",913,"CUMPLE",191]
["RESULTADO","CUMPLE",null,"CUMPLE",null,"CUMPLE",null,"NO CUMPLE"]

{"sheet":"CAP TEC - Trayectoria","index":4,"n_rows":5,"n_cols":10,"rows_kept":5,"merged":[[0,1,0,2],[0,3,0,4],[0,5,0,7],[0,8,0,9],[1,0,2,0],[1,1,2,1],[1,2,2,2],[1,3,2,3],[1,4,2,4],[1,7,2,7],[1,8,2,8],[1,9,2,9],[4,1,4,2],[4,3,4,4],[4,5,4,7],[4,8,4,9]]}
["REQUISITOS DE PARTICIPACIÓN Y HABILITACIÓN\n3.1.2.CAPACIDAD TECNICA\n3.1.2.5. Trayectoria","COMPAÑÍA INTERNACIONAL DE INTEGRACION CI2 SA",null,"TECNOLOGÍAS DE LA INFORMACIÓN Y PAGO INTEGRADO S.A.S. TIPI",null,"UNIÓN TEMPORAL SIM MEDELLIN VF (FRISSON TECNOLOGIES S.A.S 90% - VERYTEL S.A. 10%)",null,null,"INTEIA S.A.S."]
["DESCRIPCIÓN REQUISITO","Años","Folio","Años","Folio","FRISSON TECNOLOGIES S.A.S","VERYTEL S.A.","Folio","Años","Folio"]
[{"$nulls":5},"Años","Años"]
["El participante deberá acreditar por lo menos cinco (5) años de trayectoria en el mercado, a través de la fecha del Certificado de Existencia y Representación Legal sede principal. Así mismo deberá diligenciar el ANEXO N° 10 - TRAYECTORIA",26,"255-259",14,130,11,27,"1000-1003    1006- 1109",14,206]
["RESULTADO","CUMPLE",null,"CUMPLE",null,"CUMPLE",null,null,"CUMPLE"]

{"sheet":"CAP TEC - Compra pública ","index":5,"n_rows":9,"n_cols":19,"rows_kept":9,"merged":[[0,0,1,1],[0,2,0,18],[1,2,1,5],[1,6,1,9],[1,10,1,14],[1,15,1,18],[2,0,3,1],[2,2,2,3],[2,4,4,4],[2,5,4,5],[2,6,2,7],[2,8,4,8],[2,9,4,9],[2,10,2,12],[2,13,4,13],[2,14,4,14],[2,15,2,16],[2,17,4,17],[2,18,4,18],[3,3,4,3],[3,7,4,7],[3,12,4,12],[3,16,4,16],[5,0,7,0],[5,10,5,11],[6,10,6,11],[7,10,7,11],[8,0,8,1],[8,2,8,5],[8,6,8,9],[8,10,8,14],[8,15,8,18]]}
["FECHA Y HORA DE CIERRE DEL PROCESO: 05 DE DICIEMBRE DE 2025 A LAS 10:00 HORAS",null,"SPO 2025-7: CONTRATO MARCO PARA LA PRESTACIÓN DE SERVICIOS ESPECIALIZADOS ORIENTADOS A LA IMPLEMENTACIÓN Y OPERACIÓN DEL ECOSISTEMA TECNOLÓGICO DEL SISTEMA INTELIGENTE DE MOVILIDAD DE MEDELLÍNCONTRATO MARCO PARA LA PRESTACIÓN DE SERVICIOS ESPECIALIZADOS ORIENTADOS A LA IMPLEMENTACIÓN Y OPERACIÓN DEL ECOSISTEMA TECNOLÓGICO DEL SISTEMA INTELIGENTE DE MOVILIDAD DE MEDELLÍN"]
[null,null,"OFERENTE 1",{"$nulls":3},"OFERENTE 2",{"$nulls":3},"OFERENTE 3",{"$nulls":4},"OFERENTE 4"]
["REQUISITOS DE PARTICIPACIÓN Y HABILITACIÓN\n3.1.2.CAPACIDAD TECNICA\n3.1.2.6. Cumplimiento compra publica innovadora, sostenible y socialmente \nresponsable",null,"COMPAÑÍA INTERNACIONAL DE INTEGRACION CI2 SA",null,"OBSERVACIÓN","REQUERIDO","TECNOLOGÍAS DE LA INFORMACIÓN Y PAGO INTEGRADO S.A.S. TIPI",null,"OBSERVACIÓN","REQUERIDO","UNIÓN TEMPORAL SIM MEDELLIN VF (FRISSON TECNOLOGIES S.A.S 90% - VERYTEL S.A. 10%)",null,null,"OBSERVACIÓN","REQUERIDO","INTEIA S.A.S.",null,"OBSERVACIÓN","REQUERIDO"]
[null,null,"830056149-0","FOLIO FÍSICO\nN° \n",null,null,"900446461-1","FOLIO FÍSICO\nN° ",null,null,"900784911-3\nFRISSON TECNOLOGIES S.A.S","830050633-7\nVERYTEL S.A. ","FOLIO FÍSICO\nN° \n",null,null,"900457885-8","FOLIO FÍSICO\nN° \n"]
["UBICACIÓN PLIEGO","DESCRIPCIÓN REQUISITO","APORTADO",{"$nulls":3},"APORTADO",{"$nulls":3},"APORTADO","APORTADO",{"$nulls":3},"APORTADO"]
["3.1.2.6.","ANEXO N° 11 - COMPRA PÚBLICA INNOVADORA","SI","262",null,"NO","SI",191,null,"NO","SI",null,"1012",null,"NO","SI","207",null,"NO"]
[null,"ANEXO N°12 - COMPRA PÚBLICA SOSTENIBLE","SI","264",null,"NO","SI",192,null,"NO","SI",null,"1013",null,"NO","SI","208",null,"NO"]
[null,"ANEXO N°13- COMPRA PÚBLICA SOCIALMENTE RESPONSABLE","SI","266",null,"NO","SI",132,null,"NO","SI",null,"1014",null,"NO","SI","209",null,"NO"]
["RESULTADO ",null,"CUMPLE",{"$nulls":3},"CUMPLE",{"$nulls":3},"CUMPLE",{"$nulls":4},"CUMPLE"]

{"sheet":"CAP FIN Y ORG","index":6,"n_rows":25,"n_cols":8,"rows_kept":25,"merged":[[0,0,0,7],[3,0,4,0],[3,7,6,7],[9,0,10,0],[9,7,12,7],[15,0,16,0],[15,7,18,7],[21,0,22,0],[21,7,24,7]]}
["REQUISITOS DE PARTICIPACIÓN Y HABILITACIÓN\n3.1.3.CAPACIDAD FINANCIERA Y ORGANIZACIONAL"]
[]
["COMPAÑÍA INTERNACIONAL DE INTEGRACIÓN SA","Índice de liquidez","Nivel de endeudamiento","Razón de Cobertura","Rentabilidad sobre el Patrimonio","Rentabilidad sobre el Activo","Capital de Trabajo","Resultado"]
["Requerido","igual o superior a","igual o inferior a","mayor o igual a","mayor o igual a","mayor o igual a","mayor o igual a","HABILITADO"]
[null,1,0.7,2.5,0.09,0.04,{"v":1500000000,"d":"$ 1,500,000,000"}]
["Presentado",{"v":2.99,"d":"3.0"},{"v":0.24,"d":"0.2"},{"v":52184.11,"d":"52184.1"},{"v":0.36,"d":"0.4"},{"v":0.27,"d":"0.3"},{"v":42737303007,"d":"$ 42,737,303,007"}]
["RESULTADO","CUMPLE","CUMPLE","CUMPLE","CUMPLE","CUMPLE","CUMPLE"]
[]
["TECNOLOGÍAS DE LA INFORMACIÓN Y PAGO INTEGRADO SAS","Índice de liquidez","Nivel de endeudamiento","Razón de Cobertura","Rentabilidad sobre el Patrimonio","Rentabilidad sobre el Activo","Capital de Trabajo","Resultado"]
["Requerido","igual o superior a","igual o inferior a","mayor o igual a","mayor o igual a","mayor o igual a","mayor o igual a","HABILITADO"]
[null,1,0.7,2,0.07,0.05,{"v":1000000000,"d":"$ 1,000,000,000"}]
["Presentado",{"v":3.72,"d":"3.7"},{"v":0.28,"d":"0.3"},{"v":3.08,"d":"3.1"},{"v":0.15,"d":"0.2"},{"v":0.11,"d":"0.1"},{"v":1797120741,"d":"$ 1,797,120,741"}]
["RESULTADO","CUMPLE","CUMPLE","CUMPLE","CUMPLE","CUMPLE","CUMPLE"]
[]
["UT SIM MEDELLIN VF","Índice de liquidez","Nivel de endeudamiento","Razón de Cobertura","Rentabilidad sobre el Patrimonio","Rentabilidad sobre el Activo","Capital de Trabajo","Resultado"]
["Requerido","igual o superior a","igual o inferior a","mayor o igual a","mayor o igual a","mayor o igual a","mayor o igual a","HABILITADO"]
[null,1,0.7,2,0.07,0.05,{"v":1000000000,"d":"$ 1,000,000,000"}]
["Presentado",{"v":2.56,"d":"2.6"},{"v":0.55,"d":"0.6"},{"v":60.34,"d":"60.3"},{"v":0.92,"d":"0.9"},{"v":0.41,"d":"0.4"},{"v":31006906464,"d":"$ 31,006,906,464"}]
["RESULTADO","CUMPLE","CUMPLE","CUMPLE","CUMPLE","CUMPLE","CUMPLE"]
[]
["INTEIA SAS","Índice de liquidez","Nivel de endeudamiento","Razón de Cobertura","Rentabilidad sobre el Patrimonio","Rentabilidad sobre el Activo","Capital de Trabajo","Resultado"]
["Requerido","igual o superior a","igual o inferior a","mayor o igual a","mayor o igual a","mayor o igual a","mayor o igual a","HABILITADO"]
[null,1,0.7,2.5,0.09,0.04,{"v":1500000000,"d":"$ 1,500,000,000"}]
["Presentado",1.1,{"v":0.49,"d":"0.5"},{"v":22.14,"d":"22.1"},{"v":0.38,"d":"0.4"},{"v":0.19,"d":"0.2"},{"v":1599814000,"d":"$ 1,599,814,000"}]
["RESULTADO","CUMPLE","CUMPLE","CUMPLE","CUMPLE","CUMPLE","CUMPLE"]

{"sheet":"Ver y Eva - Propuestas","index":7,"n_rows":8,"n_cols":5,"rows_kept":8,"merged":[[0,0,0,4]]}
["VERIFICACIÓN Y EVALUACIÓN DE LAS PROPUESTAS"]
["Criterio","COMPAÑÍA INTERNACIONAL DE INTEGRACIÓN SA","TECNOLOGÍAS DE LA INFORMACIÓN Y PAGO INTEGRADO SAS","UT SIM MEDELLIN VF","INTEIA SAS"]
["Factor Técnico",{"$f":"'Cert Fábrica'!D9+'Resp NENA EENA APCO'!B7+'Cert Experiencia'!D8","v":250},{"$f":"'Cert Fábrica'!F9+'Resp NENA EENA APCO'!D7+'Cert Experiencia'!F8","v":420},{"$f":"'Cert Fábrica'!H9+'Resp NENA EENA APCO'!F7+'Cert Experiencia'!H8","v":260},{"$f":"'Cert Fábrica'!J9+'Resp NENA EENA APCO'!H7+'Cert Experiencia'!J8","v":50}]
["Factor Económico (Precio )",{"$f":"'Factor Económico'!B4","v":{"v":316.88578988341203,"d":"317"}},{"$f":"'Factor Económico'!C4","v":{"v":337.08260818559535,"d":"337"}},{"$f":"'Factor Económico'!D4","v":338},{"$f":"'Factor Económico'!E4","v":{"v":327.619415396096,"d":"328"}}]
["Estímulo a la industria Nacional Colombiana",{"$f":"Calidad!E3","v":100},{"$f":"Calidad!I3","v":100},{"$f":"Calidad!M3","v":100},{"$f":"Calidad!Q3","v":100}]
["Personal con discapacidad",{"$f":"Calidad!E4","v":0},{"$f":"Calidad!I4","v":0},{"$f":"Calidad!M4","v":10},{"$f":"Calidad!Q4","v":0}]
["Emprendimientos y empresas de mujeres",{"$f":"Calidad!E5","v":2},{"$f":"Calidad!I5","v":0},{"$f":"Calidad!M5","v":2},{"$f":"Calidad!Q5","v":0}]
["TOTAL PUNTOS",{"$f":"B3+B4+B5+B6+B7","v":{"v":668.885789883412,"d":"669"}},{"$f":"C3+C4+C5+C6+C7","v":{"v":857.0826081855953,"d":"857"}},{"$f":"D3+D4+D5+D6+D7","v":710},{"$f":"E3+E4+E5+E6+E7","v":{"v":477.619415396096,"d":"478"}}]

{"sheet":"Cert Fábrica","index":8,"n_rows":11,"n_cols":11,"rows_kept":11,"merged":[[0,0,0,2],[0,3,0,4],[0,5,0,6],[0,7,0,8],[0,9,0,10],[8,0,8,1],[10,0,10,10]]}
["4.2.1. Factor técnico – 550 puntos\nCertificaciones de fabrica – 150 puntos\nANEXO Nº 17 - CERTIFICACIONES DE FABRICA",null,null,"COMPAÑÍA INTERNACIONAL DE INTEGRACIÓN SA",null,"TECNOLOGÍAS DE LA INFORMACIÓN Y PAGO INTEGRADO SAS",null,"UT SIM MEDELLIN VF",null,"INTEIA SAS"]
["ÍTEM","FÁBRICA","PUNTAJE MAXIMO EVALUABLE","Puntos","Folio","Puntos","Folio","Puntos","Folio","Puntos","Folio"]
["A","Carbyne",40,40,358,40,196,40,1568,0,"-"]
["B","PTV Group",20,0,"-",20,197,0,"-",0,"-"]
["C","ISS",20,20,359,20,198,20,1569,0,"-"]
["D","Collectif",25,25,360,25,199,25,1570,0,"-"]
["E","Omnitrack",25,25,361,25,200,25,1571,0,"-"]
["F","Genetec",20,20,362,20,201,20,1572,0,"-"]
["TOTAL ",null,{"$f":"SUM(C3:C8)","v":150},{"$f":"SUM(D3:D8)","v":130},"-",{"$f":"SUM(F3:F8)","v":150},"-",{"$f":"SUM(H3:H8)","v":130},"-",{"$f":"SUM(J3:J8)","v":0},"-"]
[]
["Las cartas expedidas deben ser dirigidas al presente proceso, en papel membrete oficial y suscrita por personal competente. \n\nLas cartas deben especificar que el oferente cuenta con capacidad técnica y personal debidamente entrenado para la operación, configuración y administración de los diferentes módulos y herramientas que conforman la solución tecnológica. Para tal fin deberá diligenciar el ANEXO Nº 17 - CERTIFICACIONES DE FABRICA. \n\nNota 1: La evaluación de los factores se hará incluyendo decimales en los eventos que la ponderación específica del factor así lo arroje, por lo que para efectos no habrá lugar a ajuste aritmético o arrastre hasta el siguiente número entero.\nNota 2: En caso, de no diligenciar el anexo establecido y/o diligenciarlo de forma incompleta y/o con información inexacta y/o sin los soportes correspondientes, se computará cero (0) puntos en dicha categoría correspondiente a cada factor de evaluación.\nNota 3: En caso, que las certificaciones no cumplan con lo establecido y/o su contenido no cumple con lo requerido en los pliegos de condiciones y/o no existan soportes que permitan constatar el factor de evaluación, se computará cero (0) puntos en dicha categoría correspondiente a cada factor de evaluación.\nNota 4: Las certificaciones serán susceptibles de solicitud de aclaración siempre que no se trate de información que permita a la entidad verificar y/o comparar los factores de evaluación."]

{"sheet":"Resp NENA EENA APCO","index":9,"n_rows":7,"n_cols":9,"rows_kept":7,"merged":[[0,1,0,2],[0,3,0,4],[0,5,0,6],[0,7,0,8]]}
["4.2.1. Factor técnico – 550 puntos\nRespaldo NENA / EENA / APCO – 50 puntos","COMPAÑÍA INTERNACIONAL DE INTEGRACIÓN SA",null,"TECNOLOGÍAS DE LA INFORMACIÓN Y PAGO INTEGRADO SAS",null,"UT SIM MEDELLIN VF",null,"INTEIA SAS"]
["ÍTEM","Puntos","Folio","Puntos","Folio","Puntos","Folio","Puntos","Folio"]
["El oferente deberá aportar una comunicación oficial, expedida en papel membrete original por alguna de las siguientes asociaciones internacionales: National Emergency Number Association – NENA ((Internacional), European Emergency Number Association – EENA (Europa), o Association of Public-Safety Communications Officials – APCO (Internacional).","CUMPLE",355,"CUMPLE ",202,"CUMPLE ",1574,"NO APORTA","-"]
["La comunicación deberá estar suscrita por personal competente y autorizado de la respectiva asociación, y estar dirigida de manera expresa al presente proceso de contratación.","CUMPLE",355,"CUMPLE ",202,"CUMPLE ",1574,"NO APORTA","-"]
["Respaldo técnico al oferente en la adopción, aplicación e implementación de estándares internacionales de aseguramiento de la calidad y mejores prácticas, aplicables en Latinoamérica, que sirvan como marco referencial para la operación del Centro de Control y permitan establecer métricas, conceptos, procesos y procedimientos orientados a la mejora continua de los servicios.","CUMPLE",355,"CUMPLE ",202,"CUMPLE ",1574,"NO APORTA","-"]
["Respaldo a programas de formación, profesionalización y fortalecimiento de capacidades, dirigidos tanto a personal directivo como operativo, en temas relacionados con la gestión, operación, interoperabilidad y administración integral de centros de control bajo estándares y lineamientos internacionales emitidos por dichas asociaciones.","CUMPLE",355,"CUMPLE ",202,"CUMPLE ",1574,"NO APORTA","-"]
["TOTAL ",50,"-",50,"-",50,"-",0,"-"]

{"sheet":"Cert Experiencia","index":10,"n_rows":8,"n_cols":11,"rows_kept":8,"merged":[[0,0,0,2],[0,3,0,4],[0,5,0,6],[0,7,0,8],[0,9,0,10],[7,0,7,1]]}
["4.2.1. Factor técnico – 550 puntos\nCertificaciones de experiencia – 350 puntos\nANEXO N° 18 - CERTIFICACIÓN CAPACIDAD \nTÉCNICA",null,null,"COMPAÑÍA INTERNACIONAL DE INTEGRACIÓN SA",null,"TECNOLOGÍAS DE LA INFORMACIÓN Y PAGO INTEGRADO SAS",null,"UT SIM MEDELLIN VF",null,"INTEIA SAS"]
["ÍTEM","CAPACIDAD TÉCNICA","PUNTAJE MAXIMO EVALUABLE","Puntos","Observación","Puntos","Observación","Puntos","Observación","Puntos","Observación"]
["A","Desarrollo de productos, soluciones y/o programas informáticos",70,70,"-",50,"-",50,"-",0,"-"]
["B","Implementación y estandarización de protocolos de atención para Centros de Control",70,0,"El contrato aportado es de suministro e implementación de infraestructura fisica no de protocolos de operación.",50,"-",0,"-",0,"El contrato aportado es el mismo aportado para el requisito habilitante y no es valido de acuerdo con el pliego de condiciones y sus adendas.\n\nAdicionalmente el 2do contrato aportado si bien permite evidenciar la operación de mesa de ayuda para la cual se requieren protocolos no se puede evidenciar que sea en un centro de control."]
["C","Monitoreo, control, administración y optimización operacional de recursos públicos móviles y dispositivos de campo",70,0,"-",70,"-",30,"-",50,"El contrato aportado es el mismo aportado para el requisito habilitante y no es valido de acuerdo con el pliego de condiciones y sus adendas."]
["D","Suministro, instalación, puesta en marcha, operación y/o mantenimiento de una plataforma tecnológica destinada al control, seguimiento en tiempo real, registro y supervisión de las actuaciones de funcionarios en campo",70,0,"-",50,"-",0,"-",0,"-"]
["E","Implementación, suministro y/o puesta en funcionamiento de una plataforma de analítica forense",70,0,"-",0,"El certificado aportado no permite verificar la cantidad de registros que el factor determinante para el otorgamiento de puntaje ",0,"El certificado aportado no permite verificar la cantidad de registros que el factor determinante para el otorgamiento de puntaje ",0,"El contrato aportado es el mismo aportado para el requisito habilitante y no es valido de acuerdo con el pliego de condiciones y sus adendas."]
["TOTAL ",null,{"$f":"SUM(C3:C7)","v":350},{"$f":"SUM(D3:D7)","v":70},"-",{"$f":"SUM(F3:F7)","v":220},"-",{"$f":"SUM(H3:H7)","v":80},"-",{"$f":"SUM(J3:J7)","v":50},"-"]

{"sheet":"Factor Económico","index":11,"n_rows":4,"n_cols":5,"rows_kept":4}
["4.2.2.\tFactor Económico (Precio) – 338 puntos\nMenor Valor\nANEXO N° 19 -  PRECIOS Y CANTIDADES ","COMPAÑÍA INTERNACIONAL DE INTEGRACIÓN SA","TECNOLOGÍAS DE LA INFORMACIÓN Y PAGO INTEGRADO SAS","UT SIM MEDELLIN VF","INTEIA SAS"]
["Ítem","Valor","Valor","Valor","Valor"]
["Oferta económica",{"v":29980001801,"d":"$ 29,980,001,801"},{"v":28183704293,"d":"$ 28,183,704,293"},{"v":28107208732,"d":"$ 28,107,208,732"},{"v":28997782503,"d":"$ 28,997,782,503"}]
["Puntaje",{"$f":"(338*MIN($B$3:$E$3))/B3","v":{"v":316.88578988341203,"d":"317"}},{"$f":"(338*MIN($B$3:$E$3))/C3","v":{"v":337.08260818559535,"d":"337"}},{"$f":"(338*MIN($B$3:$E$3))/D3","v":338},{"$f":"(338*MIN($B$3:$E$3))/E3","v":{"v":327.619415396096,"d":"328"}}]

{"sheet":"Calidad","index":12,"n_rows":6,"n_cols":19,"rows_kept":6,"merged":[[0,0,1,0],[0,1,1,1],[0,2,1,2],[0,3,0,6],[0,7,0,10],[0,11,0,14],[0,15,0,18],[5,0,5,1]]}
["ITEM","CRITERIO","PUNTAJE MAXIMO EVALUABLE","COMPAÑÍA INTERNACIONAL DE INTEGRACION CI2 SA",{"$nulls":3},"TECNOLOGÍAS DE LA INFORMACIÓN Y PAGO INTEGRADO S.A.S. TIPI",{"$nulls":3},"UNIÓN TEMPORAL SIM MEDELLIN VF (FRISSON TECNOLOGIES S.A.S 90% - VERYTEL S.A. 10%)",{"$nulls":3},"INTEIA S.A.S."]
[{"$nulls":3},"APORTO","PUNTAJE","FOLIO","OBSERVACIONES","APORTO","PUNTAJE","FOLIO","OBSERVACIONES","APORTO","PUNTAJE","FOLIO","OBSERVACIONES","APORTO","PUNTAJE","FOLIO","OBSERVACIONES"]
["4.2.3.","Estímulo a la industria Nacional Colombiana",100,"SI",100,"602-613",null,"SI",100,"-",null,"SI",100,1671,"SE COMPROMETEN A CONTRATAR AL MENOS EL 40% DE EMPLEADOS COLOMBIANOS ","SI",100,216]
["4.2.4.","Personal con discapacidad",10,"NO",0,"-","NO FUE APORTADO","NO",0,"-","NO FUE APORTADO ","SI",10,"1697-1702",null,"NO",0,"-","NO FUE APORTADO"]
["4.2.5.","Emprendimientos y empresas de mujeres",2,"SI",2,"615-678",null,"NO",0,"-","NO FUE APORTADO ","SI",2,"1704-1781",null,"NO",0,"-","NO FUE APORTADO"]
["TOTAL",null,{"$f":"SUM(C3:C5)","v":112},null,102,{"$nulls":3},100,{"$nulls":3},112,{"$nulls":3},100]